Cogmind - Beta 13 @@@ ROGUE MODE // 2024.05.24 @ 18:24:53 Player: Skergy Result: Destroyed by G-34 Mercenary with Small Laser Performance ------------- Evolutions (1) 500 Regions Visited (3) 600 Robots Destroyed (6) 30 Value Destroyed (199) 199 Prototype IDs (0) 0 Alien Tech Used (0) 0 Bonus (0) 0 TOTAL SCORE: 1329 Bonus ------- None Cogmind --------- Core Integrity 0/400 Matter 285/300 Energy 88/100 System Corruption 0% Temperature Cool (6) Movement Rolling (80) Location -9/Materials Parts ------- > --- POWER (1) -------- (None) > --- PROPULSION (4) --- Wheel > --- UTILITY (2) ------ Medium Storage Unit > --- WEAPON (2) ------- (None) > --- INVENTORY (10) --- Ion Engine Compact Wheel Small Storage Unit Small Laser Peak State ------------ > --- POWER ------------ Ion Engine > --- PROPULSION ------- Light Treads Light Treads > --- UTILITY ---------- Small Storage Unit > --- WEAPON ----------- Medium Laser Assault Rifle > --- INVENTORY -------- Ion Engine Aluminum Leg Aluminum Leg Wheel Small Laser [Rating: 6] Favorites ----------- Power Ion Engine Engine Ion Engine Propulsion Light Treads Treads Light Treads Leg Aluminum Leg Wheel Wheel Utility Small Storage Unit Storage Small Storage Unit Processor Targeting Computer Weapon Medium Laser Energy Gun Medium Laser Energy Cannon Beam Cannon Ballistic Gun Assault Rifle Special Melee Weapon Datajack Build | -11 -10 -10 -9 ------- Run | Yrd Mat Min Mat Slots Evolved 2 | . . . 2 Power . | . . . . Propulsion 2 | . . . 2 Utility . | . . . . Weapon . | . . . . Parts Attached 13 | 6 1 3 3 Power 1 | 1 . . . Engine 1 | 1 . . . Core . | . . . . Reactor . | . . . . Propulsion 5 | 2 . . 3 Treads 2 | 2 . . . Leg 2 | . . . 2 Wheel 1 | . . . 1 Hover . | . . . . Flight . | . . . . Utility 3 | 1 1 1 . Device . | . . . . Storage 2 | 1 . 1 . Processor 1 | . 1 . . Hackware . | . . . . Protection . | . . . . Artifact . | . . . . Weapon 4 | 2 . 2 . Energy Gun 1 | 1 . . . Energy Cannon 1 | . . 1 . Ballistic Gun 1 | 1 . . . Ballistic Cannon . | . . . . Launcher . | . . . . Special Weapon . | . . . . Impact Weapon . | . . . . Slashing Weapon . | . . . . Piercing Weapon . | . . . . Special Melee Weapon 1 | . . 1 . Unidentified Prototypes . | . . . . Parts Lost 10 | . 4 . 6 Power 1 | . 1 . . Propulsion 4 | . 1 . 3 Utility 1 | . . . 1 Weapon 4 | . 2 . 2 Highest Loss Streak 3 | . 3 . 3 To Critical Strikes . | . . . . Average Slot Usage (%) 65 | . 77 62 46 Engine 6 | . 13 . . Treads 17 | . 27 14 3 Leg 2 | . . . 11 Storage 13 | . 14 14 11 Processor 6 | . 2 14 4 Energy Gun 6 | . 13 . . Energy Cannon 4 | . . 9 5 Ballistic Gun 2 | . 5 . . Special Melee Weapon 5 | . . 9 11 Naked Turns . | . . . . Heaviest Build 14 | 14 14 14 14 Greatest Support 40 | 40 40 20 20 Greatest Overweight (x) 4 | . . . 4 Average Overweight (x) . | . . . . Largest Inventory Capacity 10 | 8 8 10 10 Average Capacity 8 | 6 8 9 10 Most Carried 7 | 6 6 7 7 Average Carried 6 | 4 6 6 5 Final Capacity 10 | 8 8 10 10 Final Carried 7 | 6 6 7 4 Class Distribution -------------------- 100% | Mutant Dominant Class ---------------- Mutant | -10/Materials Mutant | -10/Mines Mutant | -9/Materials Resources | -11 -10 -10 -9 ----------- Run | Yrd Mat Min Mat Matter Collected 348 | 260 61 27 . Remotely . | . . . . Salvage Created 222 | . 222 . . Parts 13 | . 13 . . Haulers Intercepted . | . . . . Recyclers Shooed . | . . . . Parts Field Recycled . | . . . . Retrieved Matter . | . . . . Parts Self-Destructed . | . . . . Prevented . | . . . . Kills | -11 -10 -10 -9 ------- Run | Yrd Mat Min Mat Combat Hostiles Destroyed 5 | . 5 . . Guns 4 | . 4 . . Classes Destroyed 2 | . 2 . . Watcher 1 | . 1 . . Grunt 5 | . 5 . . Best Kill Streak 2 | . 2 . . Combat Bots Only 2 | . 2 . . Max Kills in Single Turn 1 | . 1 . . Gunslinging . | . . . . Exploded . | . . . . Melee . | . . . . Uniques/NPCs Destroyed . | . . . . Combat | -11 -10 -10 -9 -------- Run | Yrd Mat Min Mat Hostile Shots Fired 240 | . 98 . 142 Missed 72 | . 23 . 49 Damage Taken 1526 | . 716 . 810 Core 555 | . 151 . 404 Absorbed by Shields . | . . . . Core Remaining (%) 69 | 100 . 39 . Volleys Fired 35 | . 32 . 3 Largest 2 | . 2 . 1 Hottest 70 | . 70 . 60 Shots Fired 55 | . 52 . 3 Gun 52 | . 52 . . Cannon 3 | . . . 3 Launcher . | . . . . Special . | . . . . Kinetic 21 | . 21 . . Thermal 34 | . 31 . 3 Explosive . | . . . . Electromagnetic . | . . . . Robot Hit Streak 6 | . 6 . 1 Robot Miss Streak 7 | . 7 . 1 Penetration Max . | . . . . Secondary Targets 1 | . 1 . . Max Gunslinging Chain 1 | . 1 . . Shots Hit Robots 31 | . 28 . 3 Core Hits 12 | . 12 . . Critical Kills . | . . . . Critical Parts Destroyed . | . . . . Critical Strikes 4 | . 4 . . Burn 4 | . 4 . . Melee Attacks 3 | . . . 3 Impact . | . . . . Slashing . | . . . . Piercing . | . . . . Sneak Attacks . | . . . . Combat Hostiles . | . . . . Follow-up Attacks . | . . . . Damage Inflicted 372 | . 355 . 17 Guns 350 | . 350 . . Cannons 17 | . . . 17 Explosions . | . . . . Melee . | . . . . Ramming 5 | . 5 . . Kinetic 112 | . 112 . . Thermal 255 | . 238 . 17 Explosive . | . . . . Electromagnetic . | . . . . Impact . | . . . . Slashing . | . . . . Piercing . | . . . . Highest Corruption . | . . . . Average Corruption . | . . . . Corruption Purged . | . . . . Corruption Blocked . | . . . . Overload Shots . | . . . . Overflow Damage . | . . . . Projectiles . | . . . . Explosions . | . . . . Melee . | . . . . Knockbacks . | . . . . Impact . | . . . . Kinetic . | . . . . Secondary . | . . . . Self-Inflicted Damage . | . . . . Shots . | . . . . Rammed 3 | . 3 . . Targets Rammed 3 | . 3 . . Kicked . | . . . . Crushed . | . . . . Highest Temperature 159 | . 159 . 12 Average Temperature 57 | . 60 . 7 Received Heat Transfer 309 | . 210 . 99 Siege Activations . | . . . . Robots Corrupted . | . . . . Combat Hostiles . | . . . . Parts Fried . | . . . . Impact Corruptions . | . . . . Robots Melted 1 | . 1 . . Combat Hostiles 1 | . 1 . . Parts Melted 4 | . 4 . . Heat Transferred 1036 | . 999 . 37 Parts Sabotaged . | . . . . Parts Stolen . | . . . . Parts Stripped . | . . . . Power Chain Reactions . | . . . . Alert | -11 -10 -10 -9 ------- Run | Yrd Mat Min Mat Peak Influence 137 | . 137 47 65 Initial 47 | . . 47 18 Average 54 | . 79 47 35 Maximum Alert Level . | . . . . Low Security (%) 100 | 100 100 100 100 Level 1 . | . . . . Level 2 . | . . . . Level 3 . | . . . . Level 4 . | . . . . Level 5 . | . . . . High Security . | . . . . Max Security . | . . . . Squads Dispatched 4 | . 1 . 3 Investigation 2 | . . . 2 Extermination . | . . . . Reinforcement 2 | . 1 . 1 Assault . | . . . . Garrison . | . . . . Intercept . | . . . . Searches Triggered . | . . . . Construction Impeded . | . . . . Haulers Reinforced . | . . . . Active Scanning Responses . | . . . . Cargo Convoy Interrupts . | . . . . Stealth | -11 -10 -10 -9 --------- Run | Yrd Mat Min Mat Distress Signals . | . . . . Communications Jammed . | . . . . Distress Signals . | . . . . Times Spotted 27 | . 12 . 15 Peak Tracking Total 13 | . 5 . 13 Tactical Retreats 2 | . 1 . 1 Traps | -11 -10 -10 -9 ------- Run | Yrd Mat Min Mat Traps Triggered 1 | . . . 1 Indirectly . | . . . . Trap Hack Attempts . | . . . . Triggered . | . . . . Disarmed . | . . . . Reprogrammed . | . . . . Reused . | . . . . Traps Extracted . | . . . . Installed . | . . . . Triggered . | . . . . Machines | -11 -10 -10 -9 ---------- Run | Yrd Mat Min Mat Machines Disabled . | . . . . Max in Single Turn . | . . . . Machines Repaired . | . . . . Machines Dismantled . | . . . . Machines Sabotaged . | . . . . Overloaded Fab Kills . | . . . . Hacking | -11 -10 -10 -9 --------- Run | Yrd Mat Min Mat Machines Accessed 5 | . 3 . 2 Terminals 5 | . 3 . 2 Fabricators . | . . . . Repair Stations . | . . . . Recycling Units . | . . . . Scanalyzers . | . . . . Garrison Access . | . . . . Total Hacks 12 | . 6 . 6 Successful 7 | . 4 . 3 Failed 5 | . 2 . 3 Catastrophic 1 | . . . 1 Database Lockouts . | . . . . Manual 14 | . 6 . 8 Terminals 12 | . 6 . 6 Fabricators . | . . . . Repair Stations . | . . . . Recycling Units . | . . . . Scanalyzers . | . . . . Garrison Access . | . . . . Terminal Hacks . | . . . . Fabricator Hacks . | . . . . Repair Station Hacks . | . . . . Recycling Unit Hacks . | . . . . Scanalyzer . | . . . . Garrison Access Hacks . | . . . . Unauthorized Hacks 7 | . 4 . 3 Terminals 7 | . 4 . 3 Track 2 | . 1 . 1 Botnet 5 | . 3 . 2 Fabricators . | . . . . Repair Stations . | . . . . Recycling Units . | . . . . Scanalyzers . | . . . . Garrison Access . | . . . . Data Cores Recovered . | . . . . Used . | . . . . Hacking Detections 4 | . 2 . 2 Full Trace Events 1 | . . . 1 Feedback Events . | . . . . Feedback Blocked . | . . . . Robot Schematics Acquired . | . . . . Robots Built . | . . . . Authchips . | . . . . Time . | . . . . Total Robot Build Rating . | . . . . Part Schematics Acquired . | . . . . Parts Built . | . . . . Authchips . | . . . . Time . | . . . . Total Part Build Rating . | . . . . Parts Repaired . | . . . . Time . | . . . . Parts Recycled . | . . . . Recycled Matter . | . . . . Retrieved Matter . | . . . . Retrieved Components . | . . . . Parts Scanalyzed . | . . . . Part Schematics Acquired . | . . . . Parts Damaged . | . . . . Bothacking | -11 -10 -10 -9 ------------ Run | Yrd Mat Min Mat Used RIF Installer . | . . . . Robots Hacked 1 | . . . 1 Non-combat 1 | . . . 1 Combat . | . . . . Robot Hacks Applied 2 | . . . 2 no_distress 1 | . . . 1 check_alert 1 | . . . 1 Relay Couplers Released . | . . . . Fabnet Peak Effective % . | . . . . Robots Rewired . | . . . . Allies Hacked . | . . . . Hacks Repelled . | . . . . Allies | -11 -10 -10 -9 -------- Run | Yrd Mat Min Mat Total Allies . | . . . . Largest Group . | . . . . Highest-Rated Group . | . . . . Highest-Rated Ally . | . . . . Total Orders . | . . . . Ally Attacks . | . . . . Total Damage . | . . . . Kills . | . . . . Allies Corrupted . | . . . . Allies Melted . | . . . . Intel | -11 -10 -10 -9 ------- Run | Yrd Mat Min Mat Robot Analysis Total . | . . . . Derelict Logs Recovered 1 | . . 1 . Drone Launches . | . . . . Drone Recoveries . | . . . . Exploration | -11 -10 -10 -9 ------------- Run | Yrd Mat Min Mat Turns Passed 813 | 72 337 237 167 Spaces Moved 449 | 38 154 146 111 Core 9 | 2 . . 7 Treads 369 | 36 154 146 33 Legs 69 | . . . 69 Wheels 2 | . . . 2 Hover . | . . . . Flight . | . . . . Fastest Speed 50 | 50 160 160 80 Average Speed 154 | 154 160 160 138 Slowest Speed 250 | 160 160 160 250 Overloaded Moves . | . . . . Propulsion Burnouts . | . . . . Robots Hopped . | . . . . Cave-ins Triggered . | . . . . Exploration Rate (%) 30 | 5 34 61 22 Regions Visited 3 Branch Regions 1 Pre-discovered Areas 1 | . . 1 . Known Exits Taken . | . . . . Unknown Exits Taken 3 | 1 1 1 . Scrap Searched 1 | . . 1 . Spaces Dug . | . . . . Terrain Destroyed . | . . . . Melee . | . . . . Projectile . | . . . . AOE . | . . . . Terrain Rammed . | . . . . Walls Destroyed . | . . . . Machines Disabled . | . . . . Actions | -11 -10 -10 -9 --------- Run | Yrd Mat Min Mat Total 507 | 49 190 148 120 Wait 1 | . 1 . . Move 446 | 37 153 145 111 Hop . | . . . . Pick Up 6 | 6 . . . Fast Attach 9 | 6 1 2 . Attach 3 | . . . 3 Detach . | . . . . Swap 1 | . . 1 . Drop . | . . . . Fire 35 | . 32 . 3 Melee 3 | . . . 3 Ram . | . . . . Kick . | . . . . Crush 3 | . 3 . . Escape Stasis . | . . . . Rewire . | . . . . Trap . | . . . . Miscellaneous . | . . . . Route ------- -11/Scrapyard -10/Materials -10/Mines (discovered 2 exits: *Mat x2) -9/Materials (discovered 1 exit: [*Mat]) History --------- Turn | Location | Event 12 | -11/Scrapyard | Discovered new exit (range 14) 73 | -11/Scrapyard | Entered Materials 276 | -10/Materials | Discovered new exit (range 14) 302 | -10/Materials | Build established: Mutant 402 | -10/Materials | Core integrity fell below 50% 410 | -10/Materials | Entered Mines 437 | -10/Mines | Lost 3 parts (1p1n1w) 602 | -10/Mines | Learned location of Storage (-9) 623 | -10/Mines | Discovered new exit (range 12) 634 | -10/Mines | Discovered new exit (range 5) 647 | -10/Mines | Entered Materials 647 | -9/Materials | Evolved 2 slots: Propulsion x2 751 | -9/Materials | Lost 3 parts (1n1u1w) 766 | -9/Materials | Core integrity fell below 50% 796 | -9/Materials | Discovered new exit (range 9) 810 | -9/Materials | Core integrity fell below 20% 814 | -9/Materials | Destroyed by G-34 Mercenary with Small Laser Last Messages --------------- Trojan loaded successfully. Testing... Terminal linked with 0 systems. Awaiting botnet instructions. 00748_ Triggered Alarm Trap. 00748_ An alarm sounds. 00748_ ALERT: Alarm triggered, dispatching investigation squad. 00796_ EXIT=FOUND 00808_ Aluminum Leg destroyed. 00808_ Connecting with Terminal... >>Trojan(Botnet) Trojan loaded successfully. Testing... Terminal linked with 1 system. Awaiting botnet instructions. 00808_ ALERT: Suspicious activity at Terminal M011. Dispatching Investigation squad. 00810_ Aluminum Leg destroyed. 00810_ Datajack destroyed. Map ----- +----------------------------------------------------+ | | | | | | | | | | | | | | | | | | | | | | | | | | | | | | | | | | | | | ?????????????????????????????????????????????????? | | ????????????????????????????####?????????????????? | | ?###????????????????????????#T"#?????????????????? | | ##! ######????############### "############??????? | | #! ?? ????? | | #! ###########ts ????? | | #! # g# g g ????? | | ?! # "Y"gYg @ g ????? | | ??? # """ #s a ########?????? | | ????# # # #????????????? | | ????# ##/######## #????????????? | | ????# #??????# #????????????? | | ????# ## #????????????? | | ????# ## < #????????????? | | ??# ## ### #######????????????? | | # ###### #?# #??????????????????? | | + #????# #?#**==!!#??????????????????? | | # ##### #????# ??#**==!!#??????????????????? | | # #???# #????# ??########??????????????????? | | + #????/#????# ????????????????????????????? | | ??### #???? ????# ????????????????????????????? | | ????# #???? ????# ????????????????????????????? | | ????# #???? ????# ????????????????????????????? | | ????# #???? ???# ????????????????????????????? | | ????# #????!! ????? ?????????????????????????????? | | ????# #????!! ???????????????????????????????????? | | ##### #????? ???????????????????????????????????? | | # # #??????????????????????????????????????????? | | # # #??+???????????????????????????????????????? | | # # #?? ???????????????????????????????????????? | | # # #?? #??????????????????????????????????????? | | # # #?? #??????????????????????????????????????? | +----------------------------------------------------+ Best States ------------- Heat Dissipation 28 Energy Generation 10 Energy Capacity 250 Matter Stores 300 Matter Capacity 300 Sight Range 16 Terrain Scan Density 10 Evasion (%) 55 Targeting Accuracy 5 Recoil Reduction 2 Item Schematics ----------------- None Robot Schematics ------------------ None Fabricated ------------ Nothing Alien Tech Used ----------------- None Achievements -------------- Quantum Hacking Challenges ------------ None Game ------ Seed EtherialTiamatAccelerator Manual? 0 Play Time 00:13:20 Cumulative 21.9 hours Start 2024.05.24 @ 18:12:11 End 2024.05.24 @ 18:24:53 Sessions 1 Manual Loads 0 Difficulty Rogue Special Mode None Game No. 19 Rogue 19 Adventurer 0 Explorer 0 Win Type - Total 0 Types 0/0/0/0/0/0/0/0/0 Lore% 19 Gallery% 26 Achievement% 23 Wizard Run 0 Options --------- Layout 1 ASCII 0 Keyboard 1 Movement Numpad Keybinds 0 Fullscreen 1 Font 32/Cog Map View 50x35 Zoom Use 0% Tactical HUD 1 Map Filters NONE Filters NONE Steam 1 RUN: dfbb7595-0562-474a-b4af-c30922854de8